fUST/lending_fUST_20240617
["ID","MTS","AMOUNT","RATE_DAILY","PERIOD"]
[329687074,1718574658988,-3996.616156,0.00016,2]
[329687075,1718574659004,-500.0,0.00016,2]
[329687076,1718574659015,-180.5,0.00016,2]
[329687077,1718574659026,-1356.29031401,0.00016,2]
[329687078,1718574659048,-5834.68073492,0.00016,2]
[329687079,1718574659059,-151.0,0.00016,2]
[329687080,1718574659071,-151.0,0.00016,2]
[329687081,1718574659096,-151.0,0.00016,2]
[329687082,1718574659124,-759.78913764,0.00016006,2]
[329687083,1718574659135,-515.35107108,0.00016006,2]
[329687084,1718574659145,-526.09322986,0.00016006,2]
[329687085,1718574659155,-1500.63244989,0.00016006,2]
[329687086,1718574659168,-534.87830761,0.00016006,2]
[329687087,1718574659178,-10536.38828398,0.00016006,2]
[329687088,1718574659188,-187.22194756,0.00016006,2]
[329687089,1718574659200,-282.32326129,0.00016006,2]
[329687090,1718574659213,-803.55790574,0.00016006,2]
[329687091,1718574659223,-859.85078426,0.00016006,2]
[329687092,1718574659233,-190.36577265,0.00016006,2]
[329687093,1718574659244,-194.89153029,0.00016006,2]
[329687094,1718574659253,-151.0,0.00016006,2]
[329687095,1718574659269,-151.0,0.00016006,2]
[329687096,1718574659280,-151.0,0.00016006,2]
[329687097,1718574659291,-220.839856,0.00016006,2]
[329687098,1718574659301,-220.839856,0.00016006,2]
[329687099,1718574659316,-187.409446,0.00016006,2]
[329687100,1718574659335,-258.560744,0.00016006,2]
[329687101,1718574659349,-258.560744,0.00016006,2]
[329687102,1718574659360,-151.0,0.00016006,2]
[329687103,1718574659404,-160.0,0.00016058,2]
[329687104,1718574659433,-588.97407084,0.00016075,2]
[329687105,1718574659458,-151.0,0.00016124,2]
[329687106,1718574659483,-1505.463438,0.00016124,2]
[329687107,1718574659499,-1264.56282,0.00016124,2]
[329687108,1718574659514,-1247.49285597,0.00016126,7]
[329687109,1718574659532,-7316.63186597,0.00016131,2]
[329687110,1718574659572,-2888.43873327,0.000162,3]
[329687111,1718574659584,-17593.59238896,0.000162,2]
[329687112,1718574659594,-151.0,0.000162,2]
[329687113,1718574659605,-151.0,0.000162,2]
[329687114,1718574659619,-151.0,0.000162,2]
[329687115,1718574659631,-154.510803,0.000162,2]
[329687116,1718574659750,-154.510803,0.000162,2]
[329687117,1718574659768,-588.97407084,0.00016231,2]
[329687118,1718574659804,-500.0,0.00016269,2]
[329687119,1718574659819,-500.0,0.00016269,2]
[329687120,1718574659842,-722.86,0.00016269,2]
[329687121,1718574659852,-500.0,0.00016269,2]
[329687122,1718574659864,-1270.13,0.00016269,2]
[329687123,1718574659885,-2557.63,0.00016269,2]
[329687124,1718574659896,-655.07,0.00016269,2]
[329687125,1718574659907,-500.0,0.00016269,2]
[329687126,1718574659921,-892.93,0.00016269,2]
[329687127,1718574659948,-500.0,0.00016269,2]
[329687128,1718574659961,-500.0,0.00016269,2]
[329687129,1718574659980,-500.0,0.00016269,2]
[329687130,1718574659997,-752.79,0.00016269,2]
[329687131,1718574660010,-624.56,0.00016269,2]
[329687132,1718574660021,-220.839856,0.00016269,2]
[329687133,1718574660037,-220.839856,0.00016269,2]
[329687134,1718574660070,-1088.47,0.00016269,2]
[329687135,1718574660084,-678.17,0.00016269,2]
[329687136,1718574660095,-2439.91,0.00016269,2]
[329687137,1718574660114,-598.78,0.00016269,2]
[329687138,1718574660130,-500.0,0.00016269,2]
[329687139,1718574660143,-2112.2,0.00016269,2]
[329687140,1718574660156,-620.68,0.00016269,2]
[329687141,1718574660167,-258.560744,0.00016269,2]
[329687142,1718574660180,-258.560744,0.00016269,2]
[329687143,1718574660191,-656.48,0.00016269,2]
[329687144,1718574660203,-500.0,0.00016269,2]
[329687145,1718574660231,-5083.07,0.00016269,2]
[329687146,1718574660242,-703.93,0.00016269,2]
[329687147,1718574660265,-500.0,0.00016269,2]
[329687148,1718574660296,-364.16,0.00016269,2]
[329687149,1718574660310,-236.427274,0.00016269,2]
[329687150,1718574660333,-507.56,0.00016269,2]
[329687151,1718574660359,-13603.47,0.00016269,2]
[329687152,1718574660371,-6956.27,0.00016269,2]
[329687153,1718574660385,-674.44,0.00016269,2]
[329687154,1718574660397,-151.0,0.00016272,2]
[329687155,1718574660418,-151.0,0.00016272,2]
[329687156,1718574660429,-151.0,0.00016272,2]
[329687157,1718574660464,-615.79,0.00016272,2]
[329687158,1718574660475,-7683.29,0.00016272,2]
[329687159,1718574660486,-500.0,0.00016273,2]
[329687160,1718574660504,-151.0,0.00016273,2]
[329687161,1718574660525,-617.51,0.00016273,2]
[329687162,1718574660538,-151.0,0.00016273,2]
[329687163,1718574660551,-163.38952,0.00016273,2]
[329687164,1718574660562,-1505.463438,0.00016319,2]
[329687165,1718574660575,-1264.56282,0.00016319,2]
[329687166,1718574660586,-154.510803,0.00016319,2]
[329687167,1718574660597,-154.510803,0.00016319,2]
[329687168,1718574660610,-155.16060692,0.00016331,2]
[329687169,1718574660623,-211.69265269,0.00016331,2]
[329687170,1718574660635,-2950.00656112,0.00016333,2]
[329687171,1718574660646,-220.839856,0.00016333,2]
[329687172,1718574660657,-220.839856,0.00016333,2]
[329687173,1718574660668,-201.4754812,0.00016375,2]
[329687174,1718574660680,-394.28367128,0.000164,2]
[329687175,1718574660693,-151.0,0.00016438,2]
[329687176,1718574660706,-151.0,0.00016438,2]
[329687177,1718574660721,-151.0,0.00016438,2]
[329687178,1718574660742,-151.0,0.00016438,2]
[329687179,1718574660754,-151.0,0.00016438,2]
[329687180,1718574660768,-151.0,0.00016438,2]
[329687181,1718574660780,-154.510803,0.00016438,2]
[329687182,1718574660820,-154.510803,0.00016438,2]
[329687183,1718574660834,-154.510803,0.00016438,2]
[329687184,1718574660847,-154.510803,0.00016438,2]
[329687185,1718574660864,-154.510803,0.00016438,2]
[329687186,1718574660879,-154.510803,0.00016438,2]
[329687187,1718574660890,-220.839856,0.00016438,2]
[329687188,1718574660901,-220.839856,0.00016438,2]
[329687189,1718574660912,-220.839856,0.00016438,2]
[329687190,1718574660926,-220.839862,0.00016438,2]
[329687191,1718574660936,-9744.63,0.00016438,3]
[329687192,1718574660949,-9744.63,0.00016438,3]
[329687193,1718574660961,-9744.63,0.00016438,3]
[329687194,1718574660980,-9744.63,0.00016438,3]
[329687195,1718574661007,-9744.63,0.00016438,3]
[329687196,1718574661024,-9744.63,0.00016438,3]
[329687197,1718574661040,-9744.63,0.00016438,3]
[329687198,1718574661065,-9744.63,0.00016438,3]
[329687199,1718574661080,-9744.63,0.00016438,3]
[329687200,1718574661091,-9744.63,0.00016438,3]
[329687201,1718574661117,-9744.63,0.00016438,3]
[329687202,1718574661131,-9744.63,0.00016438,3]
[329687203,1718574661167,-9744.63,0.00016438,3]
[329687204,1718574661180,-9744.63,0.00016438,3]
[329687205,1718574661191,-9744.63,0.00016438,3]
[329687206,1718574661206,-9744.63,0.00016438,3]
[329687207,1718574661260,-9744.63,0.00016438,3]
[329687208,1718574661272,-9744.63,0.00016438,3]
[329687209,1718574661298,-9744.63,0.00016438,3]
[329687210,1718574661311,-4325.34050017,0.00016438,3]
[329687211,1718574661454,-261.81,0.00016438,3]
[329687212,1718574661493,-5157.47949983,0.00016438,3]
[329687213,1718574661508,-3351.42810466,0.00016438,3]
[329687214,1718574662004,-500.0,0.00014076,2]
[329687216,1718574694221,98359.5872999,0.00016543,15]
[329687619,1718575856924,-915.99,0.00010959,2]
[329687620,1718575856936,-763.33,0.00010959,2]
[329687621,1718575856955,-534.86427397,0.00014075,2]
[329687622,1718575856972,-1862.04030076,0.00014075,2]
[329687623,1718575857000,-300.0,0.00014075,2]
[329687624,1718575857011,-1515.31227053,0.00014076,2]
[329687625,1718575857023,-500.0,0.00014076,2]
[329687626,1718575857037,-500.0,0.00014076,2]
[329687627,1718575857053,-500.0,0.00014076,2]
[329687628,1718575857069,-500.0,0.00014077,2]
[329687629,1718575857084,-500.0,0.00014077,2]
[329687630,1718575857095,-500.0,0.00014077,2]
[329687631,1718575857106,-691.30254999,0.00014346,2]
[329687632,1718575857118,-156.31130542,0.00014346,2]
[329687633,1718575857130,-77.92590907,0.00014346,2]
[329687715,1718575859329,-380.11010356,0.00014346,2]
[329687717,1718575859346,-295.76670435,0.00014347,2]
[329687719,1718575859370,-100.67606062,0.00014348,2]
[329687731,1718575859639,155.1509022,0.00014346,7]
[329687794,1718575863232,-272.7344237,0.00014346,2]
[329687795,1718575863261,-299.0,0.00014347,2]
[329687797,1718575863274,-399.32393938,0.00014348,2]
[329687800,1718575863312,-500.0,0.00014348,2]
[329687801,1718575863323,-500.0,0.00014348,2]
[329687803,1718575863333,-507.19,0.00014348,2]
[329687804,1718575863346,-641.84815261,0.00014348,2]
[329687813,1718575863553,-1029.81184739,0.00014348,2]
[329687814,1718575863564,-500.0,0.00014348,2]
[329687815,1718575863577,-9722.42,0.00014348,2]
[329687816,1718575863621,-500.0,0.00014348,2]
[329687817,1718575863643,-523.29,0.00014348,2]
[329687818,1718575863657,-1414.28,0.00014348,2]
[329687819,1718575863675,-1815.0,0.00014348,2]
[329687820,1718575863693,-4802.06,0.00014349,2]
[329687821,1718575863756,-500.0,0.00014349,2]
[329687822,1718575863776,-3560.51,0.00014349,2]
[329687823,1718575863789,-500.0,0.00014349,2]
[329687824,1718575863856,-500.0,0.00014349,2]
[329687825,1718575863873,-500.0,0.00014349,2]
[329687826,1718575863887,-500.0,0.00014349,2]
[329687827,1718575863905,-500.0,0.00014349,2]
[329687828,1718575863919,-500.0,0.00014349,2]
[329687829,1718575863931,-500.0,0.0001435,2]
[329687830,1718575863945,-500.0,0.0001435,2]
[329687831,1718575863955,-500.0,0.0001435,2]
[329687832,1718575863967,-500.0,0.0001435,2]
[329687833,1718575863981,-500.0,0.0001435,2]
[329687834,1718575863991,-500.0,0.0001435,2]
[329687835,1718575864022,-500.0,0.0001435,2]
[329687836,1718575864056,-500.0,0.0001435,2]
[329687837,1718575864069,-500.0,0.0001435,2]
[329687838,1718575864080,-500.0,0.0001435,2]
[329687839,1718575864091,-500.0,0.0001435,2]
[329687840,1718575864113,-500.0,0.0001435,2]
[329687841,1718575864127,-500.0,0.0001435,2]
[329687842,1718575864152,-503.36417828,0.0001435,2]
[329687843,1718575864195,-500.0,0.0001435,2]
[329687844,1718575864252,-500.0,0.0001435,2]
[329687845,1718575864264,-500.0,0.0001435,2]
[329687846,1718575864278,-500.0,0.0001435,2]
[329687847,1718575864293,-500.0,0.0001435,2]
[329687848,1718575864304,-500.0,0.0001435,2]
[329687849,1718575864314,-292.46719692,0.0001435,2]
[329687850,1718575864325,-500.0,0.0001435,2]
[329687851,1718575864338,-500.0,0.0001435,2]
[329687852,1718575864351,-500.0,0.0001435,2]
[329687853,1718575864385,-500.0,0.0001435,2]
[329687854,1718575864401,-500.0,0.0001435,2]
[329687855,1718575864432,-569.95969663,0.0001435,2]
[329687856,1718575864443,-500.0,0.0001435,2]
[329687857,1718575864454,-430.0848862,0.0001435,2]
[329687858,1718575864486,-500.0,0.0001435,2]
[329687859,1718575864548,-500.0,0.0001435,2]
[329687860,1718575864602,-500.0,0.0001435,2]
[329687861,1718575864631,-535.71,0.0001435,2]
[329687862,1718575864666,-500.0,0.0001435,2]
[329687863,1718575864695,-563.72800977,0.0001435,2]
[329687864,1718575864717,-637.07,0.0001435,2]
[329687865,1718575864734,-620.58,0.0001435,2]
[329687866,1718575864748,-500.0,0.0001435,2]
[329687867,1718575864767,-500.0,0.0001435,2]
[329687868,1718575864788,-500.0,0.0001435,2]
[329687869,1718575864805,-1107.47,0.0001435,2]
[329687870,1718575864818,-500.0,0.0001435,2]
[329687871,1718575864856,-500.0,0.0001435,2]
[329687872,1718575864867,-500.0,0.0001435,2]
[329687873,1718575864879,-680.29,0.0001435,2]
[329687874,1718575864889,-1320.12,0.0001435,2]
[329687875,1718575864901,-500.0,0.0001435,2]
[329687876,1718575864913,-500.0,0.0001435,2]
[329687877,1718575864923,-500.0,0.0001435,2]
[329687878,1718575864938,-3985.36,0.0001435,2]
[329687879,1718575864949,-500.0,0.0001435,2]
[329687880,1718575864961,-504.85,0.0001435,2]
[329687881,1718575864974,-531.28434109,0.0001435,2]
[329687882,1718575864987,-512.38342574,0.0001435,2]
[329687883,1718575864999,-500.0,0.00014351,2]
[329687884,1718575865013,-500.0,0.00014351,2]
[329687885,1718575865026,-500.0,0.00014622,2]
[329687886,1718575865036,-507.19,0.00014622,2]
[329687887,1718575865056,-866.06428409,0.00014622,2]
[329687888,1718575865070,-805.59571591,0.00014622,2]
[329687889,1718575865080,-7904.6360883,0.00014622,2]
[329687890,1718575865092,-1817.7839117,0.00014622,2]
[329687891,1718575865104,-500.0,0.00014622,2]
[329687892,1718575865132,-523.29,0.00014622,2]
[329687893,1718575865162,-1414.28,0.00014622,2]
[329687894,1718575865208,-1815.0,0.00014622,2]
[329687895,1718575865223,-500.0,0.00014623,2]
[329687896,1718575865234,-4802.06,0.00014623,2]
[329687897,1718575865252,-500.0,0.00014623,2]
[329687898,1718575865268,-3560.51,0.00014623,2]
[329687899,1718575865283,-500.0,0.00014623,2]
[329687900,1718575865297,-500.0,0.00014623,2]
[329687901,1718575865317,-505.32,0.00014623,2]
[329687902,1718575865329,-621.83,0.00014623,2]
[329687903,1718575865341,-322.50051869,0.00014623,2]
[329687904,1718575865370,-500.0,0.00014623,2]
[329687905,1718575865392,-500.0,0.00014624,2]
[329687906,1718575865412,-500.0,0.00014624,2]
[329687907,1718575865439,-500.0,0.00014624,2]
[329687908,1718575865450,-500.0,0.00014624,2]
[329687909,1718575865465,-500.0,0.00014624,2]
[329687910,1718575865481,-500.0,0.00014624,2]
[329687911,1718575865500,-500.0,0.00014624,2]
[329687912,1718575865522,-500.0,0.00014624,2]
[329687913,1718575865533,-500.0,0.00014624,2]
[329687914,1718575865555,-500.0,0.00014624,2]
[329687915,1718575865584,-535.71,0.00014624,2]
[329687916,1718575865595,-620.58,0.00014624,2]
[329687917,1718575865605,-500.0,0.00014624,2]
[329687918,1718575865633,-1107.47,0.00014624,2]
[329687919,1718575865663,-500.0,0.00014624,2]
[329687920,1718575865693,-680.29,0.00014624,2]
[329687921,1718575865708,-1320.12,0.00014624,2]
[329687922,1718575865733,-500.0,0.00014624,2]
[329687923,1718575865874,-500.0,0.00014624,2]
[329687924,1718575865896,-500.0,0.00014624,2]
[329687925,1718575865921,-3985.36,0.00014624,2]
[329687926,1718575865939,-504.85,0.00014624,2]
[329687927,1718575865976,-500.0,0.00014625,2]
[329687928,1718575865988,-288.0,0.00014896,2]
[329687929,1718575865999,-507.19,0.00014896,2]
[329687930,1718575866036,-1671.66,0.00014896,2]
[329687931,1718575866049,-1876.93556958,0.00014896,2]
[329687934,1718575965437,1897.51294574,9.999e-05,2]
[329687935,1718576058587,155.02015262,9.999e-05,2]
[329688089,1718577045943,-300.0,0.00010958,2]
[329688092,1718577045964,-255.64,0.00010959,2]
[329688094,1718577045975,-593.5,0.00010959,2]
[329688097,1718577045990,-494.58,0.00010959,2]
[329688100,1718577046012,-412.15,0.00010959,2]
[329688103,1718577046024,-420.0,0.00012054,2]
[329688105,1718577046043,-1408.15365089,0.00013115,2]
[329688108,1718577046078,-826.10549956,0.00013115,2]
[329688135,1718577046609,-6565.19388787,0.00013115,2]
[329688337,1718577050472,-3759.80832748,0.00013115,2]
[329688338,1718577050484,-309.85278142,0.00014347,2]
[329688339,1718577050504,-155.01395126,0.00014347,2]
[329688340,1718577050517,-500.0,0.00014347,2]
[329688342,1718577050552,-500.0,0.00014348,2]
[329688343,1718577050581,-500.0,0.00014348,2]
[329688345,1718577050594,-500.0,0.00014348,2]
[329688347,1718577050605,-500.0,0.00014348,2]
[329688348,1718577050616,-500.0,0.00014348,2]
[329688349,1718577050627,-500.0,0.00014348,2]
[329688350,1718577050656,-500.0,0.00014348,2]
[329688352,1718577050667,-555.42,0.00014348,2]
[329688354,1718577050695,-500.0,0.00014348,2]
[329688355,1718577050706,-500.0,0.00014348,2]
[329688356,1718577050719,-697.11,0.00014348,2]
[329688357,1718577050730,-500.0,0.00014348,2]
[329688358,1718577050756,-500.0,0.00014348,2]
[329688359,1718577050768,-500.0,0.00014348,2]
[329688360,1718577050783,-500.0,0.00014348,2]
[329688361,1718577050800,-500.0,0.00014348,2]
[329688362,1718577050813,-500.0,0.00014348,2]
[329688363,1718577050826,-500.0,0.00014348,2]
[329688364,1718577050840,-500.0,0.00014348,2]
[329688365,1718577050852,-500.0,0.00014348,2]
[329688366,1718577050892,-500.0,0.00014348,2]
[329688367,1718577050921,-500.0,0.00014348,2]
[329688368,1718577050965,-500.0,0.00014348,2]
[329688369,1718577050978,-500.0,0.00014348,2]
[329688370,1718577051003,-624.7,0.00014348,2]
[329688371,1718577051017,-500.0,0.00014348,2]
[329688372,1718577051028,-636.9,0.00014348,2]
[329688373,1718577051041,-500.0,0.00014348,2]
[329688374,1718577051052,-500.0,0.00014348,2]
[329688375,1718577051096,-622.7,0.00014348,2]
[329688376,1718577051110,-500.0,0.00014348,2]
[329688377,1718577051152,-500.0,0.00014348,2]
[329688378,1718577051181,-500.0,0.00014348,2]
[329688379,1718577051221,-500.0,0.00014348,2]
[329688380,1718577051248,-2011.21,0.00014348,2]
[329688381,1718577051269,-500.0,0.00014348,2]
[329688382,1718577051310,-500.0,0.00014348,2]
[329688383,1718577051323,-714.7,0.00014348,2]
[329688384,1718577051337,-500.0,0.00014348,2]
[329688385,1718577051380,-500.0,0.00014348,2]
[329688386,1718577051396,-500.0,0.00014348,2]
[329688387,1718577051439,-500.0,0.00014348,2]
[329688388,1718577051456,-500.0,0.00014348,2]
[329688389,1718577051467,-500.0,0.00014348,2]
[329688390,1718577051485,-1540.83,0.00014348,2]
[329688391,1718577051498,-500.0,0.00014348,2]
[329688392,1718577051512,-560.57,0.00014348,2]
[329688393,1718577051525,-1067.53,0.00014348,2]
[329688394,1718577051551,-500.0,0.00014348,2]
[329688395,1718577051573,-500.0,0.00014348,2]
[329688396,1718577051612,-500.0,0.00014348,2]
[329688397,1718577051638,-500.0,0.00014348,2]
[329688398,1718577051801,-4712.8,0.00014348,2]
[329688399,1718577051815,-500.0,0.00014348,2]
[329688400,1718577051827,-500.0,0.00014348,2]
[329688401,1718577051846,-10943.57,0.00014348,2]
[329688402,1718577051857,-1832.64,0.00014348,2]
[329688403,1718577051869,-500.0,0.00014348,2]
[329688404,1718577051880,-1747.21,0.00014348,2]
[329688405,1718577051893,-2135.44,0.00014348,2]
[329688406,1718577051904,-630.75,0.00014348,2]
[329688407,1718577051919,-540.91,0.00014348,2]
[329688408,1718577051937,-748.0,0.00014348,2]
[329688409,1718577051960,-2197.93,0.00014348,2]
[329688410,1718577051972,-500.0,0.00014348,2]
[329688411,1718577051987,-354.32,0.00014348,2]
[329688412,1718577052001,-500.0,0.00014349,2]
[329688413,1718577052015,-500.0,0.00014349,2]
[329688414,1718577052029,-500.0,0.00014349,2]
[329688415,1718577052045,-500.0,0.00014349,2]
[329688416,1718577052062,-608.62,0.00014349,2]
[329688417,1718577052074,-500.0,0.00014349,2]
[329688418,1718577052090,-500.0,0.00014349,2]
[329688419,1718577052156,-500.0,0.00014349,2]
[329688420,1718577052202,-551.54,0.00014349,2]
[329688421,1718577052237,-321.67245539,0.00014349,2]
[329688422,1718577052284,-500.0,0.00014349,2]
[329688423,1718577052298,-500.0,0.00014349,2]
[329688424,1718577052340,-500.0,0.0001462,2]
[329688425,1718577052381,-500.0,0.00014621,2]
[329688426,1718577052421,-500.0,0.00014621,2]
[329688427,1718577052469,-500.0,0.00014621,2]
[329688428,1718577052516,-500.0,0.00014621,2]
[329688429,1718577052541,-158.4,0.00014621,2]
[329688430,1718577052554,-500.0,0.00014621,2]
[329688431,1718577052600,-391.25911084,0.00014621,2]
[329688432,1718577052632,-500.0,0.00014621,2]
[329688433,1718577052644,-500.0,0.00014621,2]
[329688434,1718577052680,-500.0,0.00014621,2]
[329688435,1718577052705,-500.0,0.00014621,2]
[329688436,1718577052733,-500.0,0.00014621,2]
[329688437,1718577052756,-500.0,0.00014621,2]
[329688438,1718577052767,-500.0,0.00014621,2]
[329688439,1718577052779,-500.0,0.00014621,2]
[329688440,1718577052822,-500.0,0.00014621,2]
[329688441,1718577052835,-243.79829258,0.00014621,2]
[329688442,1718577052848,-302.68533679,0.00014621,2]
[329688443,1718577052866,-500.0,0.00014621,2]
[329688444,1718577052882,-500.0,0.00014621,2]
[329688445,1718577052912,-500.0,0.00014621,2]
[329688446,1718577052939,-500.0,0.00014621,2]
[329688447,1718577052978,-6285.91,0.00014621,2]
[329688448,1718577052991,-189.83178066,0.00014621,2]
[329688449,1718577053009,-560.73,0.00014621,2]
[329688450,1718577053019,-4267.8,0.00014621,2]
[329688451,1718577053029,-500.0,0.00014621,2]
[329688452,1718577053040,-500.0,0.00014621,2]
[329688453,1718577053052,-500.0,0.00014622,2]
[329688454,1718577053068,-500.0,0.00014622,2]
[329688455,1718577053084,-349.55309323,0.00014622,2]
[329688456,1718577053095,-391.02,0.00014622,2]
[329688457,1718577053124,-500.0,0.00014622,2]
[329688458,1718577053146,-555.42,0.00014622,2]
[329688459,1718577053169,-500.0,0.00014622,2]
[329688460,1718577053187,-500.0,0.00014622,2]
[329688461,1718577053201,-697.11,0.00014622,2]
[329688462,1718577053213,-204.38273923,0.00014622,2]
[329688463,1718577053226,-228.66,0.00014622,2]
[329688464,1718577053255,-500.0,0.00014622,2]
[329688465,1718577053282,-500.0,0.00014622,2]
[329688466,1718577053302,-383.73028773,0.00014622,2]
[329688467,1718577053316,-500.0,0.00014622,2]
[329688468,1718577053363,-500.0,0.00014622,2]
[329688469,1718577053376,-500.0,0.00014622,2]
[329688470,1718577053388,-500.0,0.00014622,2]
[329688471,1718577053401,-500.0,0.00014622,2]
[329688472,1718577053418,-500.0,0.00014622,2]
[329688473,1718577053463,-500.0,0.00014622,2]
[329688474,1718577053480,-251.84,0.00014622,2]
[329688475,1718577053490,-624.7,0.00014622,2]
[329688476,1718577053509,-636.9,0.00014622,2]
[329688477,1718577053528,-500.0,0.00014622,2]
[329688478,1718577053562,-622.7,0.00014622,2]
[329688479,1718577053588,-500.0,0.00014622,2]
[329688480,1718577053606,-500.0,0.00014622,2]
[329688481,1718577053638,-500.0,0.00014622,2]
[329688482,1718577053674,-2011.21,0.00014622,2]
[329688483,1718577053696,-500.0,0.00014622,2]
[329688484,1718577053711,-714.7,0.00014622,2]
[329688485,1718577053728,-500.0,0.00014622,2]
[329688486,1718577053752,-500.0,0.00014622,2]
[329688487,1718577053764,-500.0,0.00014622,2]
[329688488,1718577053777,-628.44,0.00014622,2]
[329688489,1718577053795,-1540.83,0.00014622,2]
[329688490,1718577053818,-500.0,0.00014622,2]
[329688491,1718577053832,-560.57,0.00014622,2]
[329688492,1718577053843,-1067.53,0.00014622,2]
[329688493,1718577053858,-500.0,0.00014622,2]
[329688494,1718577053869,-506.61612816,0.00014622,2]
[329688495,1718577053892,-500.0,0.00014622,2]
[329688496,1718577053921,-500.0,0.00014622,2]
[329688497,1718577053941,-500.0,0.00014622,2]
[329688498,1718577053997,-4712.8,0.00014622,2]
[329688499,1718577054010,-500.0,0.00014622,2]
[329688500,1718577054028,-10943.57,0.00014622,2]
[329688501,1718577054051,-1832.64,0.00014622,2]
[329688502,1718577054070,-500.0,0.00014622,2]
[329688503,1718577054084,-1747.21,0.00014622,2]
[329688504,1718577054104,-2135.44,0.00014622,2]
[329688505,1718577054117,-630.75,0.00014622,2]
[329688506,1718577054137,-540.91,0.00014622,2]
[329688507,1718577054153,-748.0,0.00014622,2]
[329688508,1718577054174,-2197.93,0.00014622,2]
[329688509,1718577054188,-500.0,0.00014622,2]
[329688510,1718577054207,-500.0,0.00014623,2]
[329688511,1718577054237,-500.0,0.00014623,2]
[329688512,1718577054270,-500.0,0.00014623,2]
[329688513,1718577054311,-500.0,0.00014623,2]
[329688514,1718577054369,-608.62,0.00014623,2]
[329688515,1718577054384,-551.54,0.00014623,2]
[329688516,1718577054418,-500.0,0.00014623,2]
[329688517,1718577054475,-500.0,0.00014623,2]
[329688518,1718577054512,-500.0,0.00014894,2]
[329688519,1718577054525,-500.0,0.00014895,2]
[329688520,1718577054567,-500.0,0.00014895,2]
[329688521,1718577054579,-499.85000048,0.00014895,2]
[329688522,1718577054591,-500.0,0.00014895,2]
[329688523,1718577054608,-500.0,0.00014895,2]
[329688524,1718577054645,-500.0,0.00014895,2]
[329688525,1718577054712,-500.0,0.00014895,2]
[329688526,1718577054751,-500.0,0.00014895,2]
[329688527,1718577054764,-500.0,0.00014895,2]
[329688528,1718577054781,-500.0,0.00014895,2]
[329688529,1718577054807,-6285.91,0.00014895,2]
[329688530,1718577054826,-500.0,0.00014895,2]
[329688531,1718577054843,-560.73,0.00014895,2]
[329688532,1718577054872,-4267.8,0.00014895,2]
[329688533,1718577054885,-500.0,0.00014895,2]
[329688534,1718577054957,-500.0,0.00014895,2]
[329688535,1718577055012,-309.78464015,0.00014896,2]
[329688536,1718577055024,-721.95297279,0.00014896,2]
[329688537,1718577055037,-564.19850149,0.00014896,2]
[329688538,1718577055052,-250.33052327,0.00014896,2]
[329688539,1718577055076,-200.09136048,0.00014896,2]
[329688540,1718577055095,-1502.31127247,0.00014896,2]
[329688541,1718577055131,-239.70145455,0.00014896,2]
[329688542,1718577055159,-42093.8237518,0.00014896,2]
[329688543,1718577055178,-500.0,0.00014896,2]